[Event "SRB-chT Women 1st League 2019"]
[Site "Subotica"]
[Date "2019.09.01"]
[Round "11"]
[White "Vujcic, Milena"]
[Black "Benderac, Ana"]
[Result "1/2-1/2"]
[ECO "B08"]
[WhiteElo "1976"]
[BlackElo "2228"]
[Annotator "ChessBase"]
[PlyCount "54"]
[EventDate "2019.??.??"]
[EventCountry "SRB"]
[SourceTitle "playchess.com"]
[Source "ChessBase"]
[SourceQuality "1"]
[TimeControl "40/5400+30:1800+30"]

1. e4 g6 2. d4 Bg7 3. Nf3 d6 4. Nc3 Nf6 5. h3 O-O 6. Be3 a6 7. a4 Nc6 8. Be2 e5 9. d5 Ne7 10. O-O Ne8 11. Nd2 f5 12. f3 f4 13. Bf2 g5 14. a5 Nf6 15. Na4 Ng6 16. c4 Rf7 17. b4 h5 18. c5 Bf8 19. c6 bxc6 20. dxc6 Be6 21. Nb3 g4 22. hxg4 hxg4 23. fxg4 Qc8 24. Nc3 Nxg4 25. b5 axb5 26. Nxb5 Nxf2 27. Rxf2 Be7 1/2-1/2

[Event "SRB-chT Women 1st League 2019"]
[Site "Subotica"]
[Date "2019.09.01"]
[Round "11"]
[White "Pihajlic, Amalija"]
[Black "Chelushkina, Irina"]
[Result "0-1"]
[ECO "B07"]
[WhiteElo "1889"]
[BlackElo "2275"]
[Annotator "ChessBase"]
[PlyCount "46"]
[EventDate "2019.??.??"]
[EventCountry "SRB"]
[SourceTitle "playchess.com"]
[Source "ChessBase"]
[SourceQuality "1"]
[TimeControl "40/5400+30:1800+30"]

1. e4 c5 2. c3 d6 3. d4 Nf6 4. f3 Qc7 5. Be3 e6 6. Bb5+ Bd7 7. Bxd7+ Nbxd7 8. Ne2 Be7 9. O-O O-O 10. c4 cxd4 11. Qxd4 d5 12. cxd5 Bc5 13. Qd2 exd5 14. exd5 Nxd5 15. Bxc5 Qxc5+ 16. Nd4 Ne5 17. Na3 Rad8 18. Rfd1 Nb4 19. Rac1 Qb6 20. Nc4 Nxc4 21. Rxc4 Nc6 22. b4 Rxd4 23. Rxd4 Rd8 0-1